bitfinex-derivatives/quotes_BTCF0:USTF0_20241006
["timestamp","ask_amount","ask_price","bid_price","bid_amount"]
[1728177549926,0.11609218,62027.0,62026.0,0.54819013]
[1728177550331,0.11609218,62027.0,62026.0,0.4193774]
[1728177550927,0.11609218,62027.0,62026.0,0.54818982]
[1728177552723,0.01929461,62027.0,62026.0,0.54818982]
[1728177552926,0.13947773,62027.0,62026.0,0.0004]
[1728177553123,0.17061802,62027.0,62026.0,0.0004]
[1728177553522,0.23510902,62027.0,62026.0,0.0004]
[1728177560033,0.164491,62027.0,62026.0,0.54313842]
[1728177562240,0.164491,62027.0,62026.0,0.54312717]
[1728177564936,0.064491,62027.0,62026.0,0.54313188]
[1728177566941,0.064491,62027.0,62026.0,0.54166533]
[1728177569936,0.1,62031.0,62026.0,0.54166533]
[1728177570136,0.064491,62027.0,62026.0,0.12921713]
[1728177570340,0.064491,62027.0,62026.0,0.54181556]
[1728177570636,0.064491,62027.0,62026.0,0.57501556]
[1728177571142,0.064491,62027.0,62026.0,0.62732928]
[1728177571337,0.064491,62027.0,62026.0,0.44619843]
[1728177571533,0.064491,62027.0,62026.0,0.44719843]
[1728177571734,0.078491,62027.0,62026.0,0.44719843]
[1728177572343,0.078491,62027.0,62026.0,0.44919843]
[1728177573043,0.092491,62027.0,62026.0,0.44819843]
[1728177573548,0.092491,62027.0,62026.0,0.57700967]
[1728177573745,0.092491,62027.0,62026.0,0.44819843]
[1728177573942,0.092491,62027.0,62026.0,0.0356]
[1728177574249,0.092491,62027.0,62026.0,0.44648568]
[1728177575044,0.12362986,62027.0,62026.0,0.0356]
[1728177580645,0.16310858,62027.0,62026.0,0.0024]
[1728177581744,0.16311171,62027.0,62026.0,0.0024]
[1728177582850,0.12363248,62027.0,62026.0,0.0024]
[1728177583071,0.028,62027.0,62026.0,0.41393059]
[1728177583545,0.092491,62027.0,62026.0,0.41393059]
[1728177586454,0.453291,62027.0,62026.0,0.41393059]
[1728177586647,0.092491,62027.0,62026.0,0.54962532]
[1728177586846,0.453291,62027.0,62026.0,0.41244846]
[1728177589850,0.40489042,62027.0,62026.0,0.41244846]
[1728177590052,0.4360319,62027.0,62026.0,0.0024]
[1728177595057,0.0752319,62027.0,62026.0,0.0024]
[1728177595350,0.4360319,62027.0,62026.0,0.0024]
[1728177597559,0.0752319,62027.0,62026.0,0.0024]
[1728177597763,0.4360319,62027.0,62026.0,0.0024]
[1728177597958,0.3608,62027.0,62026.0,0.41113311]
[1728177598547,0.425291,62027.0,62026.0,0.41113311]
[1728177600254,0.425291,62027.0,62026.0,0.25294701]
[1728177600849,0.425291,62027.0,62026.0,0.25229953]
[1728177602557,0.064491,62027.0,62026.0,0.25229953]
[1728177602767,0.425291,62027.0,62026.0,0.25229953]
[1728177604058,0.064491,62027.0,62026.0,0.52267898]
[1728177604265,0.1,62031.0,62026.0,0.41000098]
[1728177604458,0.1,62031.0,62027.0,0.52027254]
[1728177604768,0.164487,62031.0,62030.0,0.0004]
[1728177605072,0.164487,62031.0,62030.0,0.25008982]
[1728177606366,0.166487,62031.0,62030.0,0.25008982]
[1728177607166,0.166487,62031.0,62030.0,0.26408982]
[1728177607167,0.164487,62031.0,62030.0,0.26408982]
[1728177607364,0.164487,62031.0,62030.0,0.27808982]
[1728177608159,0.0004,62033.0,62031.0,0.064486]
[1728177608354,0.0004,62033.0,62032.0,0.34637482]
[1728177608556,0.0004,62033.0,62032.0,0.5038989]
[1728177608863,0.0004,62033.0,62032.0,0.9874989]
[1728177609161,0.0113,62035.0,62033.0,0.064484]
[1728177609358,0.0113,62038.0,62034.0,0.5076139]
[1728177609554,0.0113,62038.0,62037.0,0.0004]
[1728177609760,0.42933554,62040.0,62037.0,0.24919213]
[1728177609966,0.42809554,62040.0,62039.0,0.0004]
[1728177610152,0.42809554,62040.0,62039.0,0.24919213]
[1728177611065,0.42809554,62040.0,62039.0,0.26219213]
[1728177611960,0.42809554,62040.0,62039.0,0.26199718]
[1728177612158,0.42809554,62040.0,62039.0,0.27099718]
[1728177612560,0.42809554,62040.0,62039.0,0.13579158]
[1728177612963,0.17789575,62040.0,62039.0,0.0224]
[1728177613162,0.29720961,62040.0,62039.0,0.0224]
[1728177613469,0.36168661,62040.0,62039.0,0.0224]
[1728177614161,0.36168661,62040.0,62039.0,0.05098396]
[1728177614554,0.29720961,62040.0,62039.0,0.05098396]
[1728177614755,0.12008379,62040.0,62039.0,0.15098396]
[1728177616467,0.19427827,62040.0,62039.0,0.15098396]
[1728177616669,0.14480257,62040.0,62039.0,0.15098396]
[1728177616969,0.26488636,62040.0,62039.0,0.15098396]
[1728177618368,0.26488636,62040.0,62039.0,0.21546196]
[1728177618671,0.12008379,62040.0,62039.0,0.21546196]
[1728177619667,0.07060809,62040.0,62039.0,0.21546196]
[1728177620066,0.14480257,62041.0,62039.0,0.46283142]
[1728177620271,0.14480257,62041.0,62040.0,0.24736946]
[1728177620579,0.14480257,62041.0,62040.0,0.24776946]
[1728177621676,0.14480257,62041.0,62040.0,0.24816946]
[1728177622677,0.14480257,62041.0,62040.0,0.20969264]
[1728177622973,0.14480257,62041.0,62040.0,0.21769264]
[1728177623174,0.14480257,62041.0,62040.0,0.22969264]
[1728177623370,0.14480257,62041.0,62040.0,0.33214834]
[1728177623767,0.14480257,62041.0,62040.0,0.69294834]
[1728177623971,0.14480257,62041.0,62040.0,0.58019278]
[1728177624173,0.14480257,62041.0,62040.0,0.69270964]
[1728177627179,0.39526,62057.0,62041.0,0.48352]
[1728177627180,0.00156,62057.0,62041.0,0.48352]
[1728177627373,0.0004,62062.0,62059.0,0.064457]
[1728177627574,0.0004,62062.0,62060.0,0.064456]
[1728177627780,0.0004,62062.0,62061.0,0.20892851]
[1728177627970,0.0004,62062.0,62061.0,0.11291686]
[1728177628182,0.1004,62062.0,62061.0,0.0004]
[1728177628678,0.1004,62062.0,62061.0,0.02913413]
[1728177629275,0.1004,62062.0,62061.0,0.03013413]
[1728177632083,0.1004,62062.0,62061.0,0.09458913]
[1728177632674,0.1004,62062.0,62061.0,0.03013413]
[1728177632873,0.1004,62062.0,62061.0,0.0014]
[1728177635381,0.1004,62062.0,62061.0,0.065855]
[1728177635784,0.1004,62062.0,62061.0,0.066255]
[1728177635993,0.0004,62062.0,62061.0,0.066255]
[1728177637190,0.0313,62062.0,62061.0,0.066255]
[1728177638585,0.0313,62062.0,62061.0,0.14626423]
[1728177639587,0.0313,62062.0,62061.0,0.066255]
[1728177640778,0.0313,62062.0,62061.0,0.14626423]
[1728177641192,0.0313,62062.0,62061.0,0.066255]
[1728177641487,0.0313,62062.0,62061.0,0.14626423]
[1728177642491,0.0313,62062.0,62061.0,0.25985616]
[1728177642992,0.10969173,62066.0,62062.0,0.064454]
[1728177643290,0.07057611,62065.0,62062.0,0.064454]
[1728177643484,0.07057611,62064.0,62062.0,0.064454]
[1728177643680,0.07057611,62063.0,62062.0,0.064454]
[1728177645299,0.14425194,62063.0,62062.0,0.04143758]
[1728177645488,0.14425194,62063.0,62062.0,0.04243758]
[1728177646093,0.14438541,62063.0,62061.0,0.0008]
[1728177646286,0.41441479,62062.0,62061.0,0.0008]
[1728177646488,0.27042938,62062.0,62061.0,0.0008]
[1728177646691,0.33488338,62062.0,62061.0,0.0008]
[1728177647991,0.3348872,62062.0,62061.0,0.0018]
[1728177650086,0.25430955,62062.0,62061.0,0.11520212]
[1728177650291,0.214854,62062.0,62061.0,0.11520212]
[1728177651992,0.16648324,62062.0,62061.0,0.11520212]
[1728177652196,0.0004,62062.0,62061.0,0.11520212]
[1728177652802,0.0004,62062.0,62061.0,0.21122698]
[1728177653098,0.0004,62062.0,62061.0,0.21092586]
[1728177653493,0.0004,62062.0,62061.0,0.114901]
[1728177654094,0.0004,62062.0,62061.0,0.179356]
[1728177654508,0.0004,62062.0,62061.0,0.31426868]
[1728177657099,0.0004,62062.0,62061.0,0.83193351]
[1728177657304,0.0004,62062.0,62061.0,0.78768232]
[1728177657506,0.0004,62062.0,62061.0,0.53966864]
[1728177657707,0.0004,62062.0,62061.0,0.67556557]
[1728177658206,0.0004,62062.0,62061.0,0.9450849]
[1728177659093,0.0004,62062.0,62061.0,0.83247126]
[1728177660307,0.0004,62062.0,62061.0,0.47167126]
[1728177663899,0.1,62068.0,62062.0,0.064453]
[1728177664109,0.1,62068.0,62067.0,0.0004]
[1728177664304,0.1,62068.0,62067.0,0.24891057]
[1728177665200,0.22002489,62068.0,62057.0,0.0317]
[1728177665402,0.0004,62061.0,62060.0,0.19315731]
[1728177665621,0.07097346,62061.0,62060.0,0.19315731]
[1728177666821,0.12042489,62061.0,62060.0,0.19515731]
[1728177668312,0.12042489,62061.0,62060.0,0.066456]
[1728177672315,0.1038,62068.0,62061.0,0.064455]
[1728177672513,0.1,62068.0,62067.0,0.0004]
[1728177672818,0.1,62068.0,62067.0,0.24946731]
[1728177673019,0.04356978,62068.0,62067.0,0.24946731]
[1728177673824,0.04356978,62068.0,62067.0,0.24963586]
[1728177674827,0.04356978,62068.0,62067.0,0.25063586]
[1728177675324,0.04356978,62068.0,62067.0,0.27935815]
[1728177675519,0.064447,62069.0,62067.0,0.27935815]
[1728177675728,0.064447,62069.0,62068.0,0.11389006]
[1728177677415,0.064447,62069.0,62068.0,0.11489006]
[1728177679123,0.00096001,62070.0,62068.0,0.6109316]
[1728177679323,0.06685886,62074.0,62069.0,0.3135786]
[1728177679324,0.064443,62073.0,62069.0,0.3135786]
[1728177679530,0.064443,62073.0,62072.0,0.0004]
[1728177679831,0.064443,62073.0,62072.0,0.2491316]
[1728177680227,0.09555974,62073.0,62072.0,0.0004]
[1728177680525,0.18445284,62073.0,62072.0,0.0004]
[1728177681130,0.18445284,62073.0,62072.0,0.0018]
[1728177682125,0.18445284,62073.0,62072.0,0.0028]
[1728177684030,0.18445284,62073.0,62072.0,0.00178398]
[1728177684424,0.12000984,62073.0,62072.0,0.00178398]
[1728177684730,0.12000984,62073.0,62072.0,0.06622798]
[1728177685519,0.12001074,62073.0,62072.0,0.06622798]
[1728177686322,0.12001074,62073.0,62072.0,0.16622798]
[1728177686728,0.20814979,62073.0,62072.0,0.19141548]
[1728177686936,0.19204426,62073.0,62072.0,0.19141548]
[1728177687236,0.16334415,62074.0,62073.0,0.064443]
[1728177687430,0.16334415,62074.0,62073.0,0.33762934]
[1728177687829,0.16334415,62074.0,62073.0,0.20281525]
[1728177688742,0.00241686,62074.0,62073.0,0.20281525]
[1728177689239,0.00241686,62074.0,62073.0,0.17762775]
[1728177689538,0.00241686,62074.0,62073.0,0.17962775]
[1728177690326,0.00241686,62074.0,62073.0,0.2756928]
[1728177692637,0.00241686,62074.0,62073.0,0.17962775]
[1728177694629,0.00241686,62074.0,62073.0,0.066843]
[1728177695546,0.00241686,62074.0,62073.0,0.27952031]
[1728177695936,0.00241686,62074.0,62073.0,0.41382369]
[1728177696242,0.00241686,62074.0,62073.0,0.166843]
[1728177698436,0.00241686,62074.0,62073.0,0.527643]
[1728177701043,0.064435,62081.0,62075.0,0.064441]
[1728177701236,0.064435,62081.0,62077.0,0.1004]
[1728177701441,0.0317,62084.0,62080.0,0.1004]
[1728177701643,0.0317,62084.0,62083.0,0.1004]
[1728177701839,0.096131,62084.0,62083.0,0.1004]
[1728177702842,0.096131,62084.0,62083.0,0.1014]
[1728177703045,0.2738954,62084.0,62083.0,0.0014]
[1728177703348,0.21612612,62084.0,62083.0,0.0014]
[1728177703847,0.21612612,62084.0,62083.0,0.0024]
[1728177704643,0.15169512,62084.0,62083.0,0.0024]
[1728177704949,0.15169512,62084.0,62083.0,0.066832]
[1728177705757,0.16074363,62084.0,62083.0,0.427632]
[1728177705949,0.28073875,62084.0,62083.0,0.427632]
[1728177708543,0.28072459,62084.0,62083.0,0.427632]
[1728177709052,0.0654,62091.0,62083.0,0.427632]
[1728177709053,0.064415,62100.0,62084.0,0.4832]
[1728177709241,0.11997693,62099.0,62084.0,0.03938142]
[1728177709443,0.064415,62100.0,62098.0,0.1]
[1728177709747,0.064415,62100.0,62099.0,0.0004]
[1728177710944,0.064415,62100.0,62099.0,0.0014]
[1728177712146,0.064415,62100.0,62099.0,0.0024]
[1728177717954,0.15327522,62100.0,62099.0,0.00163391]
[1728177718849,0.25327522,62100.0,62099.0,0.00163391]
[1728177719042,0.28438156,62100.0,62099.0,0.0011142]
[1728177719752,0.18438156,62100.0,62099.0,0.0011142]
[1728177720052,0.28438657,62100.0,62099.0,0.0011142]
[1728177721353,0.28438999,62100.0,62099.0,0.0011142]
[1728177721554,0.34214498,62100.0,62099.0,0.0011142]
[1728177721759,0.34214498,62100.0,62095.0,0.01661952]
[1728177722054,0.1,62096.0,62094.0,0.0113]
[1728177722250,0.064424,62092.0,62089.0,0.0113]
[1728177722455,0.064424,62092.0,62087.0,0.064428]
[1728177722456,0.0004,62090.0,62087.0,0.064428]
[1728177722758,0.17772998,62089.0,62088.0,0.1]
[1728177723850,0.17772998,62089.0,62087.0,0.09359055]
[1728177724045,0.17772998,62088.0,62087.0,0.09359055]
[1728177724260,0.17812998,62088.0,62087.0,0.19359055]
[1728177725954,0.0004,62088.0,62087.0,0.40563912]
[1728177726154,0.20914808,62090.0,62088.0,0.064427]
[1728177726155,0.20874808,62090.0,62088.0,0.064427]
[1728177726351,0.20874808,62090.0,62089.0,0.11642012]
[1728177726949,0.20874808,62090.0,62089.0,0.18084612]
[1728177727757,0.20974808,62090.0,62089.0,0.18084612]
[1728177729759,0.001,62090.0,62089.0,0.18084612]
[1728177730151,0.001,62090.0,62089.0,0.27687457]
[1728177731156,0.001,62090.0,62089.0,0.18083064]
[1728177732156,0.001,62090.0,62089.0,0.28083064]
[1728177732757,0.001,62090.0,62089.0,0.41913949]
[1728177733057,0.20897898,62090.0,62089.0,0.03590222]
[1728177733255,0.29784322,62090.0,62089.0,0.1]
[1728177733452,0.29784322,62090.0,62089.0,0.164426]
[1728177733453,0.12097088,62090.0,62089.0,0.164426]
[1728177733867,0.20903255,62090.0,62089.0,0.164426]
[1728177734364,0.12097088,62090.0,62089.0,0.164426]
[1728177736458,0.12097088,62090.0,62088.0,0.36164]
[1728177736664,0.12037088,62089.0,62088.0,0.3608]
[1728177737868,0.12037088,62089.0,62087.0,0.02916255]
[1728177738070,0.12037088,62088.0,62085.0,0.16768575]
[1728177738267,0.12037088,62088.0,62085.0,0.52764575]
[1728177738268,0.17750143,62086.0,62085.0,0.52764575]
[1728177738570,0.12037088,62086.0,62085.0,0.52764575]
[1728177739159,0.12037088,62086.0,62085.0,0.16684575]
[1728177739362,0.12037088,62086.0,62085.0,0.52764575]
[1728177739871,0.12037088,62086.0,62085.0,0.55721043]
[1728177740270,0.12037088,62086.0,62085.0,0.56121043]
[1728177740763,0.12037506,62086.0,62085.0,0.56121043]
[1728177741158,0.0004,62088.0,62085.0,0.91598584]
[1728177741369,0.0004,62088.0,62087.0,0.164828]
[1728177741666,0.0004,62088.0,62087.0,0.42179776]
[1728177742366,0.0004,62088.0,62087.0,0.42219776]
[1728177743476,0.0004,62088.0,62087.0,0.42419776]
[1728177746579,0.0004,62088.0,62087.0,0.44937906]
[1728177750587,0.0004,62088.0,62087.0,0.44947746]
[1728177751784,0.0004,62088.0,62087.0,0.42429616]
[1728177755473,0.0004,62088.0,62087.0,0.42430753]
[1728177755675,0.0004,62089.0,62087.0,0.53639741]
[1728177755879,0.0004,62089.0,62088.0,0.25741834]
[1728177756089,0.07054416,62089.0,62088.0,0.064827]
[1728177758686,0.07054416,62089.0,62088.0,0.065827]
[1728177758887,0.07054416,62089.0,62088.0,0.165827]
[1728177759277,0.13497016,62089.0,62088.0,0.0014]
[1728177759477,0.13497016,62089.0,62085.0,0.03282043]
[1728177759478,0.064429,62086.0,62085.0,0.03282043]
[1728177759675,0.064429,62086.0,62085.0,0.03198043]
[1728177759676,0.07094416,62086.0,62085.0,0.03198043]
[1728177759879,0.13537316,62086.0,62085.0,0.00241575]
[1728177760087,0.18480406,62086.0,62085.0,0.00241575]
[1728177760286,0.14537763,62086.0,62085.0,0.00241575]
[1728177760495,0.18481897,62086.0,62085.0,0.00241575]
[1728177760792,0.18481897,62086.0,62085.0,0.00641575]
[1728177763190,0.064829,62086.0,62085.0,0.12360013]
[1728177765075,0.064829,62086.0,62085.0,0.26327006]
[1728177765274,0.064829,62086.0,62085.0,0.26331687]
[1728177765475,0.164829,62086.0,62085.0,0.26331687]
[1728177766186,0.525629,62086.0,62085.0,0.26090112]
[1728177766991,0.164829,62086.0,62085.0,0.26090112]
[1728177767185,0.525629,62086.0,62085.0,0.26090112]
[1728177767381,0.164829,62086.0,62085.0,0.26090112]
[1728177767699,0.525629,62086.0,62085.0,0.26090112]
[1728177768193,0.164829,62086.0,62085.0,0.26090112]
[1728177768590,0.525629,62086.0,62085.0,0.26090112]
[1728177768785,0.164829,62086.0,62085.0,0.26090112]
[1728177769489,0.525629,62086.0,62085.0,0.26090112]
[1728177770283,0.525629,62086.0,62085.0,0.26083136]
[1728177771094,0.63855926,62086.0,62079.0,0.01829384]
[1728177771394,0.17737186,62080.0,62079.0,0.01829384]
[1728177771583,0.20848388,62080.0,62079.0,0.01829384]
[1728177771784,0.29736351,62080.0,62079.0,0.01829384]
[1728177772192,0.12039165,62080.0,62079.0,0.01829384]
[1728177772397,0.12039165,62080.0,62079.0,0.04774771]
[1728177772594,0.12039165,62080.0,62079.0,0.01829384]
[1728177773488,0.12039165,62080.0,62079.0,0.02129384]
[1728177773892,0.12039165,62080.0,62079.0,0.04647833]
[1728177774198,0.12039165,62080.0,62079.0,0.05247833]
[1728177774581,0.12039165,62080.0,62079.0,0.05747833]
[1728177775000,0.12039165,62080.0,62079.0,0.03229384]
[1728177775303,0.12039086,62080.0,62079.0,0.05747846]
[1728177778083,0.19345026,62083.0,62079.0,0.47861756]
[1728177778290,0.17697186,62083.0,62082.0,0.0004]
[1728177778596,0.24140486,62083.0,62082.0,0.25855753]
[1728177780395,0.24140486,62083.0,62082.0,0.26455753]
[1728177780601,0.064433,62083.0,62082.0,0.26455753]
[1728177781090,0.064433,62083.0,62082.0,0.26655753]
[1728177784598,0.064433,62083.0,62082.0,0.36655753]
[1728177784791,0.064428,62088.0,62082.0,0.36655753]
[1728177784993,0.458223,62093.0,62087.0,0.1004]
[1728177785188,0.064425,62091.0,62087.0,0.1004]
[1728177785394,0.11998505,62090.0,62087.0,0.1004]
[1728177785592,0.11998505,62089.0,62087.0,0.1004]
[1728177785799,0.064425,62091.0,62087.0,0.1004]
[1728177785800,0.11998505,62088.0,62087.0,0.1004]
[1728177787220,0.11998505,62088.0,62087.0,0.165828]
[1728177787501,0.11998505,62088.0,62087.0,0.23330076]
[1728177787689,0.11998505,62088.0,62087.0,0.23230076]
[1728177787892,0.20822446,62088.0,62087.0,0.23230076]
[1728177788093,0.17711415,62088.0,62087.0,0.23230076]
[1728177788289,0.11996877,62088.0,62087.0,0.23230076]
[1728177788500,0.07054046,62088.0,62087.0,0.23230076]
[1728177788800,0.11996877,62088.0,62087.0,0.23230076]
[1728177789004,0.03110609,62088.0,62087.0,0.166828]
[1728177789303,0.19204035,62088.0,62087.0,0.166828]
[1728177789804,0.28090303,62088.0,62087.0,0.166828]
[1728177790007,0.11996877,62088.0,62087.0,0.166828]
[1728177790206,0.19201655,62088.0,62087.0,0.066828]
[1728177790505,0.11996877,62088.0,62087.0,0.03202284]
[1728177790705,0.03110609,62088.0,62087.0,0.03202284]
[1728177791198,0.11996877,62088.0,62087.0,0.03202284]
[1728177791802,0.0805344,62088.0,62087.0,0.03202284]
[1728177792006,0.11996877,62088.0,62087.0,0.03202284]
[1728177792206,0.07054046,62088.0,62087.0,0.03202284]
[1728177792506,0.11996877,62088.0,62087.0,0.03202284]
[1728177792909,0.03110784,62088.0,62087.0,0.13202284]
[1728177793207,0.17711415,62090.0,62087.0,0.249197]
[1728177793414,0.3622,62095.0,62089.0,0.0004]
[1728177793615,0.3622,62095.0,62092.0,0.06445478]
[1728177793616,0.3612,62095.0,62092.0,0.06445478]
[1728177794112,0.3612,62095.0,62094.0,0.0004]
[1728177794905,0.0004,62095.0,62094.0,0.0004]
[1728177795111,0.3612,62095.0,62094.0,0.0004]
[1728177795418,0.42562,62095.0,62094.0,0.0004]
[1728177795611,0.42562,62095.0,62094.0,0.04943818]
[1728177795815,0.42562,62095.0,62094.0,0.0014]
[1728177796016,0.43062,62095.0,62094.0,0.0014]
[1728177796717,0.53062,62095.0,62094.0,0.0014]
[1728177797721,0.16982,62095.0,62094.0,0.0014]
[1728177797920,0.53062,62095.0,62094.0,0.0014]
[1728177801415,0.16982,62095.0,62094.0,0.0014]
[1728177801614,0.53062,62095.0,62094.0,0.0014]
[1728177801817,0.16982,62095.0,62094.0,0.0014]
[1728177802016,0.53062,62095.0,62094.0,0.0014]
[1728177803526,0.53062,62095.0,62094.0,0.0298467]
[1728177804212,0.43062,62095.0,62094.0,0.0298467]
[1728177805221,0.43062,62095.0,62094.0,0.07788814]
[1728177807324,0.06982,62095.0,62094.0,0.07788814]
[1728177807513,0.43062,62095.0,62094.0,0.07788814]
[1728177808325,0.60835918,62095.0,62094.0,0.0298467]
[1728177808929,0.70835918,62095.0,62094.0,0.0298467]
[1728177809522,0.34755918,62095.0,62094.0,0.0298467]
[1728177809719,0.70835918,62095.0,62094.0,0.0298467]
[1728177812423,0.70835757,62095.0,62094.0,0.0298467]
[1728177814229,0.34755757,62095.0,62094.0,0.0298467]
[1728177814429,0.70835757,62095.0,62094.0,0.0298467]
[1728177814834,0.78549285,62095.0,62094.0,0.0298467]
[1728177815232,0.60775528,62095.0,62094.0,0.14715074]
[1728177816039,0.5674656,62095.0,62094.0,0.14715074]
[1728177816222,0.54293528,62095.0,62094.0,0.14715074]
[1728177816418,0.60735528,62095.0,62094.0,0.14715074]
[1728177819336,0.24655528,62095.0,62094.0,0.14715074]
[1728177819524,0.60735528,62095.0,62094.0,0.14715074]
[1728177819730,0.60735528,62095.0,62094.0,0.11870404]
[1728177820135,0.60735528,62095.0,62094.0,0.214846]
[1728177821339,0.06942,62095.0,62094.0,0.214846]
[1728177821529,0.43022,62095.0,62094.0,0.214846]
[1728177821836,0.06942,62095.0,62094.0,0.214846]
[1728177822337,0.43022,62095.0,62094.0,0.214846]
[1728177822522,0.06942,62095.0,62094.0,0.214846]
[1728177822726,0.43022,62095.0,62094.0,0.214846]
[1728177823325,0.43022,62095.0,62094.0,0.0014]
[1728177823326,0.60795713,62095.0,62094.0,0.0014]
[1728177830331,0.43022,62095.0,62094.0,0.11855952]
[1728177832839,0.06942,62095.0,62094.0,0.11855952]
[1728177833145,0.43022,62095.0,62094.0,0.11855952]
[1728177834741,0.53022,62095.0,62094.0,0.11855952]
[1728177835533,0.16942,62095.0,62094.0,0.11855952]
[1728177835736,0.53022,62095.0,62094.0,0.11855952]
[1728177836340,0.16942,62095.0,62094.0,0.11855952]
[1728177836542,0.53022,62095.0,62094.0,0.11855952]
[1728177837244,0.53022,62095.0,62094.0,0.11853658]
[1728177838339,0.53022,62095.0,62094.0,0.0014]
[1728177840743,0.16942,62095.0,62094.0,0.0014]
[1728177840943,0.53022,62095.0,62094.0,0.0014]
[1728177841963,0.43022,62095.0,62094.0,0.0014]
[1728177842247,0.53022,62095.0,62094.0,0.0014]
[1728177845554,0.70795924,62095.0,62094.0,0.0014]
[1728177845948,0.34715924,62095.0,62094.0,0.0014]
[1728177846442,0.70795924,62095.0,62094.0,0.0014]
[1728177848243,0.70795924,62095.0,62094.0,0.00097538]
[1728177850055,0.34715924,62095.0,62094.0,0.00097538]
[1728177850249,0.70795924,62095.0,62094.0,0.00097538]
[1728177851668,0.60795924,62095.0,62094.0,0.00097538]
[1728177853661,0.43022,62095.0,62094.0,0.21435393]
[1728177855155,0.43022,62095.0,62094.0,0.21435299]
[1728177855544,0.53022,62095.0,62094.0,0.21435299]
[1728177856160,0.16942,62095.0,62094.0,0.21435299]
[1728177856355,0.16942,62095.0,62094.0,0.11821103]
[1728177856559,0.16942,62095.0,62094.0,0.21443194]
[1728177859460,0.16942,62095.0,62094.0,0.11821103]
[1728177859762,0.16942,62095.0,62094.0,0.21443104]
[1728177860164,0.16942,62095.0,62094.0,0.21441284]
[1728177860367,0.53022,62095.0,62094.0,0.21441284]
[1728177860570,0.53022,62095.0,62088.0,0.0316]
[1728177860571,0.7079571,62095.0,62087.0,0.11212774]
[1728177860871,0.20884567,62089.0,62088.0,0.064427]
[1728177861160,0.1777371,62089.0,62088.0,0.064427]
[1728177861562,0.38722492,62089.0,62088.0,0.064427]
[1728177861960,0.1777371,62089.0,62088.0,0.064427]
[1728177863159,0.1787371,62089.0,62088.0,0.064427]
[1728177863663,0.1787371,62089.0,62088.0,0.065427]
[1728177865168,0.17873816,62089.0,62088.0,0.065427]
[1728177865567,0.38822554,62089.0,62088.0,0.065427]
[1728177868069,0.17873816,62089.0,62088.0,0.065427]
[1728177868579,0.17873816,62089.0,62088.0,0.60103628]
[1728177868580,0.20948667,62089.0,62088.0,0.60103628]
[1728177869073,0.20948667,62089.0,62088.0,0.32493956]
[1728177869864,0.20948667,62089.0,62088.0,0.32503271]
[1728177872277,0.064422,62093.0,62088.0,0.32503271]
[1728177872475,0.064422,62093.0,62089.0,0.25960571]
[1728177872771,0.064422,62093.0,62092.0,0.0004]
[1728177872978,0.064422,62093.0,62092.0,0.26000571]
[1728177873373,0.067422,62093.0,62092.0,0.26000571]
[1728177874672,0.067422,62093.0,62092.0,0.25995495]
[1728177874877,0.067422,62093.0,62092.0,0.11881217]
[1728177875071,0.067422,62093.0,62092.0,0.25997456]
[1728177875467,0.24515864,62093.0,62092.0,0.0004]
[1728177875675,0.42241659,62093.0,62092.0,0.0004]
[1728177875875,0.36465634,62093.0,62092.0,0.0004]
[1728177876081,0.36465634,62093.0,62092.0,0.0014]
[1728177876973,0.24515864,62093.0,62092.0,0.0014]
[1728177877281,0.18739839,62093.0,62092.0,0.0014]
[1728177877968,0.24515864,62093.0,62092.0,0.0014]
[1728177878279,0.27579142,62093.0,62092.0,0.0014]
[1728177878471,0.36465974,62093.0,62092.0,0.0014]
[1728177878663,0.24515864,62093.0,62092.0,0.0014]
[1728177878871,0.18739839,62093.0,62092.0,0.0014]
[1728177879268,0.067422,62093.0,62092.0,0.0014]
[1728177879470,0.18740036,62093.0,62092.0,0.0014]
[1728177881669,0.54820036,62093.0,62092.0,0.0014]
[1728177881868,0.60596061,62093.0,62092.0,0.0014]
[1728177883570,0.428222,62093.0,62092.0,0.26096307]
[1728177883976,0.067422,62093.0,62092.0,0.26096307]
[1728177886172,0.167422,62093.0,62092.0,0.26096307]
[1728177890785,0.167422,62093.0,62092.0,0.20000986]
[1728177892777,0.167422,62093.0,62092.0,0.20000895]
[1728177893178,0.167422,62093.0,62092.0,0.1198061]
[1728177893381,0.167422,62093.0,62092.0,0.20000954]
[1728177894480,0.067422,62093.0,62092.0,0.20000954]
[1728177898791,0.1874005,62093.0,62092.0,0.0014]
[1728177899175,0.24516177,62093.0,62092.0,0.0014]
[1728177901885,0.24516122,62093.0,62092.0,0.0014]
[1728177903197,0.18739995,62093.0,62092.0,0.0014]
[1728177903395,0.24516122,62093.0,62092.0,0.0014]
[1728177905691,0.067422,62093.0,62092.0,0.26092093]
[1728177911501,0.067422,62093.0,62092.0,0.26092638]
[1728177911695,0.067422,62093.0,62092.0,0.11979914]
[1728177912994,0.067422,62093.0,62092.0,0.11979797]
[1728177913590,0.18739733,62093.0,62092.0,0.0014]
[1728177914201,0.33243255,62093.0,62092.0,0.0014]
[1728177914504,0.18739733,62093.0,62092.0,0.0014]
[1728177916317,0.12297533,62093.0,62092.0,0.165823]
[1728177916502,0.180735,62093.0,62092.0,0.165823]
[1728177920909,0.06271066,62095.0,62092.0,0.42517474]
[1728177921121,0.06271066,62095.0,62094.0,0.0004]
[1728177921312,0.06271066,62095.0,62094.0,0.11868685]
[1728177922014,0.06771066,62095.0,62094.0,0.11868685]
[1728177922915,0.06771066,62095.0,62094.0,0.11838456]
[1728177923110,0.06771066,62095.0,62094.0,0.11938456]
[1728177923501,0.06571066,62095.0,62094.0,0.11938456]
[1728177924718,0.06571066,62095.0,62094.0,0.26002406]
[1728177925317,0.06571066,62095.0,62094.0,0.28929889]
[1728177925519,0.06571066,62095.0,62094.0,0.14865939]
[1728177926616,0.003,62095.0,62094.0,0.38931345]
[1728177927417,0.003,62095.0,62094.0,0.45373445]
[1728177928026,0.003,62095.0,62094.0,0.19509583]
[1728177935821,0.14129099,62095.0,62094.0,0.13801693]
[1728177936018,0.39021211,62095.0,62094.0,0.13801693]
[1728177937226,0.39021211,62095.0,62094.0,0.064421]
[1728177937414,0.27024334,62095.0,62094.0,0.064421]
[1728177937620,0.39021211,62095.0,62094.0,0.064421]
[1728177938817,0.39021211,62095.0,62094.0,0.09312324]
[1728177939726,0.18072536,62095.0,62094.0,0.09312324]
[1728177942432,0.39008842,62095.0,62094.0,0.09312324]
[1728177942921,0.39008842,62095.0,62094.0,0.35245501]